fUSD/lending_fUSD_20240517
["ID","MTS","AMOUNT","RATE_DAILY","PERIOD"]
[327238273,1715910639396,-500.0,0.00010958,2]
[327238276,1715910639406,-500.0,0.00010958,2]
[327238278,1715910639416,-573.04562279,0.00010958,2]
[327238280,1715910639425,-500.0,0.00010958,2]
[327238282,1715910639435,-507.62206502,0.00010958,2]
[327238284,1715910639444,-500.0,0.00010958,2]
[327238286,1715910639453,-512.54059164,0.00010958,2]
[327238288,1715910639463,-500.0,0.00010958,2]
[327238290,1715910639474,-772.39,0.00010958,2]
[327238292,1715910639483,-500.0,0.00010958,2]
[327238294,1715910639494,-500.0,0.00010958,2]
[327238296,1715910639504,-500.0,0.00010958,2]
[327238298,1715910639513,-596.22020985,0.00010958,2]
[327238300,1715910639522,-506.53333101,0.00010958,2]
[327238302,1715910639532,-500.0,0.00010958,2]
[327238304,1715910639541,-500.0,0.00010958,2]
[327238306,1715910639551,-500.0,0.00010958,2]
[327238308,1715910639562,-500.0,0.00010958,2]
[327238310,1715910639571,-612.24006327,0.00010958,2]
[327238312,1715910639583,-500.0,0.00010958,2]
[327238314,1715910639593,-500.0,0.00010958,2]
[327238316,1715910639602,-310.43639921,0.00010958,2]
[327238318,1715910639611,-500.0,0.00010958,2]
[327238320,1715910639621,-500.0,0.00010958,2]
[327238322,1715910639630,-505.92874497,0.00010958,2]
[327238324,1715910639640,-500.0,0.00010958,2]
[327238326,1715910639649,-500.0,0.00010958,2]
[327238328,1715910639659,-500.0,0.00010958,2]
[327238330,1715910639668,-316.31129705,0.00010958,2]
[327238332,1715910639678,-500.0,0.00010958,2]
[327238334,1715910639687,-500.0,0.00010958,2]
[327238336,1715910639696,-500.0,0.00010958,2]
[327238338,1715910639705,-500.0,0.00010958,2]
[327238340,1715910639715,-189.99424373,0.00010958,2]
[327238342,1715910639724,-500.0,0.00010958,2]
[327238344,1715910639733,-530.0990926,0.00010958,2]
[327238346,1715910639743,-500.0,0.00010958,2]
[327238348,1715910639752,-500.0,0.00010958,2]
[327238350,1715910639762,-500.0,0.00010958,2]
[327238352,1715910639772,-519.00174738,0.00010958,2]
[327238353,1715910639781,-1250.64,0.00010958,2]
[327238354,1715910639790,-391.17170274,0.00010958,2]
[327238355,1715910639800,-500.0,0.00010958,2]
[327238356,1715910639809,-507.10245043,0.00010958,2]
[327238357,1715910639819,-500.0,0.00010958,2]
[327238358,1715910639828,-550.63969537,0.00010958,2]
[327238359,1715910639840,-500.0,0.00010958,2]
[327238360,1715910639849,-500.0,0.00010958,2]
[327238361,1715910639858,-206.89765155,0.00010958,2]
[327238362,1715910639867,-500.0,0.00010958,2]
[327238363,1715910639878,-500.0,0.00010958,2]
[327238364,1715910639887,-500.0,0.00010958,2]
[327238365,1715910639897,-500.0,0.00010958,2]
[327238366,1715910639907,-500.0,0.00010958,2]
[327238367,1715910639916,-500.0,0.00010958,2]
[327238368,1715910639926,-500.0,0.00010958,2]
[327238369,1715910639935,-556.14,0.00010958,2]
[327238370,1715910639944,-554.42107919,0.00010958,2]
[327238371,1715910639954,-500.0,0.00010958,2]
[327238372,1715910639963,-500.0,0.00010958,2]
[327238373,1715910639973,-500.0,0.00010958,2]
[327238374,1715910639982,-543.92636311,0.00010958,2]
[327238375,1715910639992,-500.0,0.00010958,2]
[327238376,1715910640002,-500.0,0.00010958,2]
[327238377,1715910640012,-500.0,0.00010958,2]
[327238378,1715910640022,-959.02,0.00010958,2]
[327238379,1715910640032,-500.0,0.00010958,2]
[327238380,1715910640042,-500.0,0.00010958,2]
[327238381,1715910640051,-361.85616327,0.00010958,2]
[327238382,1715910640061,-500.0,0.00010958,2]
[327238383,1715910640070,-500.0,0.00010958,2]
[327238384,1715910640082,-500.0,0.00010958,2]
[327238385,1715910640091,-500.0,0.00010958,2]
[327238386,1715910640102,-607.13904326,0.00010958,2]
[327238387,1715910640111,-510.46116165,0.00010958,2]
[327238388,1715910640121,-500.0,0.00010958,2]
[327238389,1715910640130,-572.97980115,0.00010958,2]
[327238390,1715910640140,-500.0,0.00010958,2]
[327238391,1715910640151,-495.5710142,0.00010958,2]
[327238392,1715910640161,-500.0,0.00010958,2]
[327238393,1715910640170,-500.0,0.00010958,2]
[327238394,1715910640180,-500.0,0.00010958,2]
[327238395,1715910640190,-500.0,0.00010958,2]
[327238396,1715910640199,-500.0,0.00010958,2]
[327238397,1715910640209,-502.84354661,0.00010958,2]
[327238398,1715910640219,-185.34,0.00010959,2]
[327238399,1715910640230,-3005.0,0.00010959,2]
[327238400,1715910640241,-1000.0,0.00010988,2]
[327238401,1715910640253,-2000.0,0.00011,2]
[327238402,1715910640263,-2568.6,0.00011015,2]
[327238403,1715910640274,-250.0,0.00011037,2]
[327238404,1715910640284,-174.649326,0.00011233,2]
[327238405,1715910640294,-336.06239,0.00011233,2]
[327238406,1715910640303,-221.484761,0.00011233,2]
[327238407,1715910640312,-198.16,0.00011281,2]
[327238408,1715910640325,-168.41,0.00011299,2]
[327238409,1715910640336,-150.0,0.00011325,2]
[327238410,1715910640345,-174.649326,0.00011374,2]
[327238411,1715910640354,-2170.12,0.00011374,2]
[327238412,1715910640363,-336.06239,0.00011374,2]
[327238413,1715910640372,-221.484761,0.00011374,2]
[327238414,1715910640382,-186.39863867,0.00011472,2]
[327238415,1715910640392,-150.0,0.00011477,2]
[327238416,1715910640402,-2000.0,0.000115,2]
[327238417,1715910640412,-174.649326,0.00011514,2]
[327238418,1715910640422,-336.06239,0.00011514,2]
[327238419,1715910640431,-221.484761,0.00011514,2]
[327238421,1715910640441,-10000.0,0.0001155,2]
[327238423,1715910640450,-150.0,0.0001163,2]
[327238424,1715910640460,-174.649326,0.00011654,2]
[327238425,1715910640469,-336.06239,0.00011654,2]
[327238426,1715910640478,-221.484761,0.00011654,2]
[327238427,1715910640488,-150.0,0.00011782,2]
[327238428,1715910640497,-174.649326,0.00011795,2]
[327238429,1715910640507,-336.06239,0.00011795,2]
[327238430,1715910640516,-221.484761,0.00011795,2]
[327238431,1715910640526,-457.57537053,0.000118,2]
[327238432,1715910640536,-270.67436643,0.00011898,2]
[327238434,1715910640545,-150.0,0.00011934,2]
[327238435,1715910640555,-500.0,0.00011998,2]
[327238436,1715910640565,-500.0,0.00011998,2]
[327238437,1715910640574,-500.0,0.00011998,2]
[327238438,1715910640587,-228.21090073,0.00011998,2]
[327238439,1715910640596,-500.0,0.00011998,2]
[327238440,1715910640605,-598.53028598,0.00011998,2]
[327238441,1715910640614,-556.14,0.00011998,2]
[327238442,1715910640623,-500.0,0.00011998,2]
[327238443,1715910640632,-500.0,0.00011998,2]
[327238444,1715910640641,-500.0,0.00011998,2]
[327238445,1715910640651,-500.0,0.00011998,2]
[327238446,1715910640660,-607.28147726,0.00011999,2]
[327238447,1715910640670,-160.74969771,0.00011999,2]
[327238448,1715910640680,-500.0,0.00011999,2]
[327238449,1715910640689,-500.0,0.00011999,2]
[327238450,1715910640699,-500.0,0.00011999,2]
[327238451,1715910640708,-500.0,0.00011999,2]
[327238452,1715910640718,-548.59525142,0.00011999,2]
[327238453,1715910640728,-168.0658147,0.00011999,2]
[327238454,1715910640737,-500.0,0.00011999,2]
[327238455,1715910640746,-500.0,0.00011999,2]
[327238456,1715910640756,-192.06527487,0.00011999,2]
[327238457,1715910640766,-500.0,0.00011999,2]
[327238458,1715910640775,-500.0,0.00011999,2]
[327238459,1715910640784,-395.86108481,0.00011999,2]
[327238460,1715910640794,-500.0,0.00011999,2]
[327238461,1715910640803,-500.0,0.00011999,2]
[327238462,1715910640813,-241.50078748,0.00011999,2]
[327238463,1715910640822,-500.0,0.00011999,2]
[327238464,1715910640833,-510.33201437,0.00011999,2]
[327238465,1715910640842,-276.91235375,0.00011999,2]
[327238466,1715910640858,-223.08764625,0.00011999,2]
[327238467,1715910640867,-500.0,0.00011999,2]
[327238468,1715910640877,-520.44204855,0.00011999,2]
[327238469,1715910640886,-500.0,0.00011999,2]
[327238470,1715910640896,-2000.0,0.00012,2]
[327238471,1715910640905,-687.50393,0.00012,2]
[327238472,1715910640914,-155.0,0.00012,2]
[327238473,1715910640924,-5000.0,0.00012,2]
[327238474,1715910640934,-19626.96507151,0.00012,2]
[327238475,1715910640944,-500.0,0.00012,2]
[327238476,1715910640953,-500.0,0.00012,2]
[327238477,1715910640963,-500.0,0.00012,2]
[327238478,1715910640972,-500.0,0.00012,2]
[327238479,1715910641201,-500.0,0.00012,2]
[327238480,1715910641211,-500.0,0.00012,2]
[327238481,1715910641220,-438.94,0.00012,2]
[327238482,1715910641229,-155.14529835,0.00012,2]
[327238483,1715910641243,-500.0,0.00012,2]
[327238484,1715910641252,-500.0,0.00012,2]
[327238485,1715910641262,-500.0,0.00012,2]
[327238486,1715910641271,-500.0,0.00012,2]
[327238487,1715910641281,-500.0,0.00012,2]
[327238488,1715910641290,-500.0,0.00012,2]
[327238489,1715910641300,-500.0,0.00012,2]
[327238490,1715910641309,-500.0,0.00012,2]
[327238491,1715910641320,-500.0,0.00012,2]
[327238492,1715910641329,-500.0,0.00012,2]
[327238493,1715910641340,-500.0,0.00012,2]
[327238494,1715910641349,-500.0,0.00012,2]
[327238495,1715910641358,-500.0,0.00012,2]
[327238496,1715910641367,-500.0,0.00012,2]
[327238497,1715910641376,-500.0,0.00012,2]
[327238498,1715910641386,-500.0,0.00012,2]
[327238499,1715910641395,-500.0,0.00012,2]
[327238500,1715910641405,-500.0,0.00012,2]
[327238501,1715910641415,-500.0,0.00012,2]
[327238502,1715910641424,-500.0,0.00012,2]
[327238503,1715910641434,-500.0,0.00012,2]
[327238504,1715910641443,-500.0,0.00012,2]
[327238505,1715910641455,-500.0,0.00012,2]
[327238506,1715910641466,-500.0,0.00012,2]
[327238507,1715910641475,-500.0,0.00012,2]
[327238508,1715910641485,-500.0,0.00012,2]
[327238509,1715910641495,-500.0,0.00012,2]
[327238510,1715910641504,-500.0,0.00012,2]
[327238511,1715910641515,-500.0,0.00012,2]
[327238512,1715910641525,-500.0,0.00012,2]
[327238513,1715910641535,-500.0,0.00012,2]
[327238514,1715910641544,-500.0,0.00012,2]
[327238515,1715910641554,-500.0,0.00012,2]
[327238516,1715910641564,-500.0,0.00012,2]
[327238517,1715910641573,-500.0,0.00012,2]
[327238518,1715910641583,-323.56,0.00012,2]
[327238519,1715910641592,-500.0,0.00012,2]
[327238520,1715910641601,-300.0,0.00012,2]
[327238521,1715910641610,-170.34,0.00012033,2]
[327238522,1715910641620,-255.3503,0.00012044,2]
[327238523,1715910641629,-170.4062,0.00012044,2]
[327238524,1715910641639,-1203.9012,0.00012044,2]
[327238525,1715910641649,-594.2069,0.00012044,2]
[327238526,1715910641659,-150.0,0.00012086,2]
[327238527,1715910641668,-180.0,0.00012175,2]
[327238528,1715910641678,-150.33,0.00012192,2]
[327238529,1715910641688,-150.0,0.00012192,2]
[327238530,1715910641697,-150.0,0.00012192,2]
[327238531,1715910641707,-150.0,0.00012192,2]
[327238532,1715910641716,-150.0,0.00012192,2]
[327238533,1715910641726,-1250.0,0.000123,2]
[327238534,1715910641736,-169.7,0.00012356,2]
[327238535,1715910641745,-1000.0,0.00012362,2]
[327238536,1715910641755,-181.49625513,0.00012371,2]
[327238537,1715910641764,-500.0,0.00012381,2]
[327238538,1715910641774,-186.63505778,0.00012381,2]
[327238539,1715910641783,-478.92591909,0.00012381,2]
[327238540,1715910641792,-150.0,0.00012381,2]
[327238541,1715910641803,-500.0,0.00012381,2]
[327238542,1715910641812,-500.0,0.00012381,2]
[327238543,1715910641822,-500.0,0.00012381,2]
[327238544,1715910641831,-500.0,0.00012381,2]
[327238545,1715910641842,-514.17460983,0.00012381,2]
[327238546,1715910641851,-513.69236377,0.00012381,2]
[327238547,1715910641860,-500.0,0.00012381,2]
[327238548,1715910641870,-500.0,0.00012381,2]
[327238549,1715910641879,-500.0,0.00012381,2]
[327238550,1715910641889,-500.0,0.00012381,2]
[327238551,1715910641898,-500.0,0.00012381,2]
[327238552,1715910641908,-500.0,0.00012381,2]
[327238553,1715910641917,-500.0,0.00012381,2]
[327238554,1715910641926,-500.0,0.00012381,2]
[327238555,1715910641935,-500.0,0.00012381,2]
[327238556,1715910641945,-173.82364179,0.00012381,2]
[327238557,1715910641954,-500.0,0.00012381,2]
[327238558,1715910641964,-500.0,0.00012381,2]
[327238559,1715910641973,-500.0,0.00012381,2]
[327238560,1715910641982,-500.0,0.00012381,2]
[327238561,1715910641991,-500.0,0.00012381,2]
[327238562,1715910642001,-500.0,0.00012381,2]
[327238563,1715910642010,-772.39,0.00012381,2]
[327238564,1715910642019,-500.0,0.00012381,2]
[327238565,1715910642028,-500.0,0.00012381,2]
[327238566,1715910642037,-500.0,0.00012381,2]
[327238567,1715910642047,-500.0,0.00012381,2]
[327238568,1715910642056,-616.32002226,0.00012381,2]
[327238569,1715910642066,-500.0,0.00012381,2]
[327238570,1715910642075,-500.0,0.00012381,2]
[327238571,1715910642085,-500.0,0.00012381,2]
[327238572,1715910642095,-500.0,0.00012381,2]
[327238573,1715910642104,-1250.64,0.00012381,2]
[327238574,1715910642114,-500.0,0.00012381,2]
[327238575,1715910642124,-500.0,0.00012381,2]
[327238576,1715910642133,-581.90307809,0.00012381,2]
[327238577,1715910642142,-323.13679559,0.00012381,2]
[327238578,1715910642152,-500.0,0.00012381,2]
[327238579,1715910642162,-586.10034195,0.00012381,2]
[327238580,1715910642171,-500.0,0.00012381,2]
[327238581,1715910642180,-500.0,0.00012381,2]
[327238582,1715910642189,-500.0,0.00012381,2]
[327238583,1715910642199,-500.0,0.00012381,2]
[327238584,1715910642208,-2159.0,0.00012382,2]
[327238585,1715910642218,-973.0,0.00012382,2]
[327238586,1715910642227,-1399.0,0.00012382,2]
[327238587,1715910642237,-1225.0,0.00012382,2]
[327238588,1715910642251,-544.0,0.00012382,2]
[327238589,1715910642261,-1262.0,0.00012382,2]
[327238590,1715910642270,-1791.0,0.00012382,2]
[327238591,1715910642279,-164.921,0.00012382,2]
[327238592,1715910642290,-440.673,0.00012382,2]
[327238593,1715910642300,-494.759,0.00012382,2]
[327238594,1715910642309,-810.0,0.00012382,2]
[327238595,1715910642319,-612.0,0.00012382,2]
[327238596,1715910642330,-1652.174,0.00012382,2]
[327238597,1715910642341,-2358.563,0.00012382,2]
[327238598,1715910642351,-150.256,0.00012382,2]
[327238599,1715910642360,-1142.172,0.00012382,2]
[327238600,1715910642370,-3159.0,0.00012382,2]
[327238601,1715910642379,-215.0,0.00012382,2]
[327238602,1715910642388,-5914.0,0.00012382,2]
[327238603,1715910642397,-1464.0,0.00012382,2]
[327238604,1715910642407,-150.0,0.00012382,2]
[327238605,1715910642417,-150.072,0.00012382,2]
[327238606,1715910642426,-289.0,0.00012382,2]
[327238607,1715910642435,-5753.0,0.00012382,2]
[327238608,1715910642445,-37858.0,0.00012382,2]
[327238609,1715910642455,-150.0,0.00012382,2]
[327238610,1715910642464,-150.09,0.00012382,2]
[327238611,1715910642474,-1061.704,0.00012382,2]
[327238612,1715910642484,-10934.65564137,0.000124,2]
[327238613,1715910642493,-876.34,0.00012464,2]
[327238614,1715910642502,-869.11,0.00012464,2]
[327238615,1715910642512,-551.3,0.00012464,2]
[327238616,1715910642522,-833.65,0.00012464,2]
[327238617,1715910642532,-252.32718806,0.000125,2]
[327238618,1715910642542,-155.0,0.000125,2]
[327238619,1715910642551,-198.16,0.00012691,2]
[327238620,1715910642560,-500.0,0.00012749,2]
[327238621,1715910642570,-12651.55997179,0.0001275,2]
[327238622,1715910642579,-500.0,0.00012796,2]
[327238623,1715910642590,-384.07205426,0.00012796,2]
[327238624,1715910642598,-500.0,0.00012796,2]
[327238625,1715910642608,-500.0,0.00012796,2]
[327238626,1715910642616,-500.0,0.00012796,2]
[327238627,1715910642626,-500.0,0.00012796,2]
[327238628,1715910642635,-500.0,0.00012796,2]
[327238629,1715910642644,-500.0,0.00012796,2]
[327238630,1715910642653,-463.59255669,0.00012796,2]
[327238631,1715910642662,-500.0,0.00012796,2]
[327238632,1715910642672,-500.0,0.00012796,2]
[327238633,1715910642681,-500.0,0.00012796,2]
[327238634,1715910642691,-959.02,0.00012796,2]
[327238635,1715910642701,-500.0,0.00012796,2]
[327238636,1715910642711,-503.35029605,0.00012797,2]
[327238637,1715910642720,-505.41188383,0.00012797,2]
[327238638,1715910642730,-503.7472812,0.00012797,2]
[327238639,1715910642741,-505.27709108,0.00012797,2]
[327238640,1715910642751,-507.66211537,0.00012797,2]
[327238641,1715910642761,-505.31388421,0.00012797,2]
[327238642,1715910642770,-506.15503327,0.00012797,2]
[327238643,1715910642779,-524.36817314,0.00012797,2]
[327238644,1715910642789,-531.23019588,0.00012797,2]
[327238645,1715910642799,-500.0,0.00012797,2]
[327238646,1715910642808,-500.0,0.00012797,2]
[327238647,1715910642818,-506.02192272,0.00012797,2]
[327238648,1715910642828,-500.0,0.00012797,2]
[327238649,1715910642839,-500.0,0.00012797,2]
[327238650,1715910642848,-507.28211988,0.00012797,2]
[327238651,1715910642857,-597.39545094,0.00012797,2]
[327238652,1715910642868,-506.53314892,0.00012797,2]
[327238653,1715910642877,-505.34278212,0.00012797,2]
[327238654,1715910642888,-483.75504941,0.00012797,2]
[327238655,1715910642897,-597.43691505,0.00012797,2]
[327238656,1715910642907,-618.12450425,0.00012797,2]
[327238657,1715910642918,-509.08890365,0.00012797,2]
[327238658,1715910642928,-555.14070433,0.00012797,2]
[327238659,1715910642937,-526.12364592,0.00012797,2]
[327238660,1715910642946,-593.29704577,0.00012797,2]
[327238661,1715910642955,-500.0,0.00012797,2]
[327238662,1715910642964,-500.0,0.00012797,2]
[327238663,1715910642974,-500.0,0.00012797,2]
[327238664,1715910642983,-500.0,0.00012797,2]
[327238665,1715910642992,-507.46685344,0.00012797,2]
[327238666,1715910643001,-505.89257843,0.00012797,2]
[327238667,1715910643010,-500.0,0.00012797,2]
[327238668,1715910643019,-508.29835267,0.00012797,2]
[327238669,1715910643028,-638.79001528,0.00012797,2]
[327238670,1715910643037,-500.0,0.00012797,2]
[327238671,1715910643047,-506.81735833,0.00012797,2]
[327238672,1715910643057,-500.0,0.00012797,2]
[327238673,1715910643066,-500.0,0.00012797,2]
[327238674,1715910643075,-494.83190232,0.00012797,2]
[327238675,1715910643087,-508.94523809,0.00012797,2]
[327238676,1715910643099,-274.32593925,0.00012797,2]
[327238677,1715910643109,-500.0,0.00012797,2]
[327238678,1715910643118,-500.0,0.00012797,2]
[327238679,1715910643128,-514.71622382,0.00012797,2]
[327238680,1715910643138,-500.0,0.00012797,2]
[327238681,1715910643147,-536.26799508,0.00012797,2]
[327238682,1715910643157,-500.0,0.00012797,2]
[327238683,1715910643166,-520.11656677,0.00012797,2]
[327238684,1715910643176,-512.7116029,0.00012797,2]
[327238685,1715910643185,-503.65235932,0.00012797,2]
[327238686,1715910643195,-505.65025074,0.00012797,2]
[327238687,1715910643205,-507.0145073,0.00012797,2]
[327238688,1715910643214,-509.43154633,0.00012797,2]
[327238689,1715910643223,-502.86629556,0.00012797,2]
[327238690,1715910643234,-500.0,0.00012797,2]
[327238691,1715910643248,-509.69952329,0.00012797,2]
[327238692,1715910643259,-500.0,0.00012797,2]
[327238693,1715910643271,-596.30557283,0.00012797,2]
[327238694,1715910643284,-500.0,0.00012797,2]
[327238695,1715910643296,-500.0,0.00012797,2]
[327238696,1715910643309,-580.11352306,0.00012797,2]
[327238697,1715910643324,-246.70970378,0.00012799,2]
[327238698,1715910643337,-500.0,0.00012803,2]
[327238699,1715910643347,-837.0,0.00012804,2]
[327238700,1715910643357,-3624.07,0.00012828,2]
[327238701,1715910643369,-181.27800061,0.00012869,2]
[327238702,1715910643381,-500.0,0.00012892,2]
[327238703,1715910643392,-506.91726697,0.00012892,2]
[327238704,1715910643402,-500.0,0.00012892,2]
[327238705,1715910643414,-500.0,0.00012892,2]
[327238706,1715910643425,-500.0,0.00012892,2]
[327238708,1715910643436,-500.0,0.00012892,2]
[327238710,1715910643448,-500.0,0.00012892,2]
[327238713,1715910643460,-507.04802054,0.00012892,2]
[327238715,1715910643470,-515.72707767,0.00012892,2]
[327238718,1715910643482,-500.0,0.00012892,2]
[327238721,1715910643495,-502.49656222,0.00012892,2]
[327238723,1715910643507,-500.0,0.00012892,2]
[327238726,1715910643518,-202.078235,0.00012896,2]
[327238728,1715910643529,-201.441444,0.00012896,2]
[327238729,1715910643541,-500.0,0.00012896,2]
[327238730,1715910643551,-300.78730647,0.00012898,2]
[327238731,1715910643562,-500.0,0.00012898,2]
[327238732,1715910643572,-500.0,0.00012898,2]
[327238734,1715910643583,-500.0,0.00012898,2]
[327238737,1715910643594,-556.14,0.00012898,2]
[327238739,1715910643606,-500.0,0.00012898,2]
[327238740,1715910643617,-500.0,0.00012898,2]
[327238741,1715910643628,-500.0,0.00012898,2]
[327238742,1715910643639,-500.0,0.00012898,2]
[327238743,1715910643651,-214.62113941,0.000129,2]
[327238744,1715910643661,-293.39390223,0.000129,2]
[327238745,1715910643671,-246.70970378,0.000129,2]
[327238746,1715910643683,-3717.65669753,0.000129,2]
[327238747,1715910643695,-837.0,0.00012936,2]
[327238748,1715910643705,-571.82518442,0.0001299,2]
[327238749,1715910643716,-552.74158445,0.0001299,2]
[327238750,1715910643727,-500.0,0.0001299,2]
[327238751,1715910643738,-500.0,0.0001299,2]
[327238752,1715910643748,-500.0,0.0001299,2]
[327238753,1715910643760,-500.0,0.0001299,2]
[327238754,1715910643771,-500.0,0.0001299,2]
[327238755,1715910643782,-500.0,0.0001299,2]
[327238756,1715910643793,-500.0,0.0001299,2]
[327238757,1715910643805,-500.0,0.0001299,2]
[327238758,1715910643816,-500.0,0.0001299,2]
[327238759,1715910643828,-500.0,0.0001299,2]
[327238760,1715910643840,-500.0,0.0001299,2]
[327238761,1715910643851,-500.0,0.0001299,2]
[327238762,1715910643861,-500.0,0.0001299,2]
[327238763,1715910643871,-252.5090779,0.00012991,2]
[327238764,1715910643881,-252.5090779,0.00012991,2]
[327238765,1715910643890,-252.5090779,0.00012991,2]
[327238766,1715910643900,-252.5090779,0.00012991,2]
[327238767,1715910643910,-252.5090779,0.00012991,2]
[327238768,1715910643921,-6006.8591914,0.00012991,2]
[327238769,1715910643932,-4614.0551505,0.00012991,2]
[327238770,1715910643944,-3221.2511097,0.00012991,2]
[327238771,1715910643955,-1828.4470689,0.00012991,2]
[327238772,1715910643967,-435.643028,0.00012991,2]
[327238773,1715910643977,-17895.1702701,0.00012991,2]
[327238775,1715910643988,-13745.8362056,0.00012991,2]
[327238777,1715910643998,-9596.5021411,0.00012991,2]
[327238778,1715910644009,-5447.1680766,0.00012991,2]
[327238779,1715910644020,-1297.834012,0.00012991,2]
[327238780,1715910644030,-1033.4647143,0.00012991,2]
[327238781,1715910644041,-1033.4647143,0.00012991,2]
[327238782,1715910644052,-1033.4647143,0.00012991,2]
[327238783,1715910644063,-1033.4647143,0.00012991,2]
[327238784,1715910644074,-1033.4647143,0.00012991,2]
[327238785,1715910644084,-889.3687589,0.00012991,2]
[327238786,1715910644094,-889.3687589,0.00012991,2]
[327238787,1715910644104,-889.3687589,0.00012991,2]
[327238788,1715910644114,-889.3687589,0.00012991,2]
[327238789,1715910644126,-889.3687589,0.00012991,2]
[327238790,1715910644137,-1775.62851001,0.00012996,2]
[327238791,1715910644148,-252.5090779,0.00012996,2]
[327238792,1715910644159,-7399.6632322,0.00012996,2]
[327238793,1715910644169,-22044.5043346,0.00012996,2]
[327238794,1715910644180,-1033.4647143,0.00012996,2]
[327238795,1715910644191,-157.051711,0.00012997,2]
[327238796,1715910644201,-157.051711,0.00012997,2]
[327238797,1715910644212,-500.0,0.00012997,2]
[327238798,1715910644223,-421.09368169,0.00012997,2]
[327238799,1715910644234,-500.0,0.00012997,2]
[327238800,1715910644248,-500.0,0.00012997,2]
[327238801,1715910644261,-500.0,0.00012997,2]
[327238803,1715910644271,-500.0,0.00012997,2]
[327238805,1715910644283,-500.0,0.00012997,2]
[327238807,1715910644294,-1250.64,0.00012997,2]
[327238809,1715910644305,-500.0,0.00012997,2]
[327238810,1715910644315,-500.0,0.00012997,2]
[327238811,1715910644330,-155.20066096,0.00012998,2]
[327238812,1715910644341,-177.17841491,0.00012998,2]
[327238813,1715910644353,-298.91789347,0.00012998,2]
[327238814,1715910644364,-337.03850568,0.00012998,2]
[327238815,1715910644375,-1214.96485855,0.00012998,2]
[327238816,1715910644386,-657.13065033,0.00012998,2]
[327238817,1715910644397,-1273.72472758,0.00012998,2]
[327238818,1715910644408,-189.92579261,0.00012998,2]
[327238819,1715910644418,-279.82704078,0.00012998,2]
[327238820,1715910644429,-215.52577319,0.00012998,2]
[327238821,1715910644440,-176.75590354,0.00012998,2]
[327238822,1715910644451,-33753.02724589,0.00012998,2]
[327238823,1715910644461,-155.97294436,0.00012998,2]
[327238824,1715910644472,-500.0,0.00012998,2]
[327238825,1715910644483,-583.4817929,0.00012998,2]
[327238826,1715910644494,-487.18093442,0.00012998,2]
[327238827,1715910644504,-500.0,0.00012998,2]
[327238828,1715910644515,-500.0,0.00012998,2]
[327238829,1715910644526,-169.553183,0.00012998,2]
[327238830,1715910644536,-395.63384061,0.00012998,2]
[327238831,1715910644546,-225.32355021,0.00012998,2]
[327238832,1715910644557,-500.0,0.00012998,2]
[327238833,1715910644567,-174.04415124,0.00012998,2]
[327238834,1715910644578,-273.84340809,0.00012998,2]
[327238835,1715910644590,-500.0,0.00012998,2]
[327238836,1715910644601,-500.0,0.00012998,2]
[327238837,1715910644611,-500.0,0.00012998,2]
[327238838,1715910644621,-500.0,0.00012998,2]